[Event "FIDE Open Sachove Univerzity QCC"]
[Site "Ceske Budejovice"]
[Date "2020.07.08"]
[Round "8.29"]
[White "Barth Vit"]
[Black "Barta, David"]
[Result "0-1"]
[ECO "A56"]
[WhiteElo "1356"]
[BlackElo "1541"]
[Annotator "NA"]
[PlyCount "54"]
[EventDate "2020.07.01"]
[EventType "swiss"]
[EventCountry "CZE"]
[SourceTitle "playchess.com"]
[Source "ChessBase"]
[SourceQuality "1"]
[TimeControl "40/5400+30:1800+30"]

1. c4 {[%emt 0:00:00]} c5 {[%emt 0:00:39]} 2. e3 {[%emt 0:01:07]} d6 {[%emt 0:01:03]} 3. d4 {[%emt 0:00:54]} Nf6 {[%emt 0:02:03]} 4. dxc5 {[%emt 0:01:01]} dxc5 {[%emt 0:01:14]} 5. Qxd8+ {[%emt 0:00:27]} Kxd8 {[%emt 0:00:03]} 6. Nc3 {[%emt 0:00:21]} b6 {[%emt 0:02:21]} 7. Nf3 {[%emt 0:01:47]} Bb7 {[%emt 0:00:54]} 8. Be2 {[%emt 0:01:35]} a6 {[%emt 0:02:37]} 9. O-O {[%emt 0:01:14]} Nbd7 {[%emt 0:01:36]} 10. Rd1 {[%emt 0:02:30]} Kc7 {[%emt 0:01:16]} 11. Ng5 {[%emt 0:02:55]} h6 {[%emt 0:11:24]} 12. Nxf7 {[%emt 0:00:37]} Rh7 {[%emt 0:01:24]} 13. Bd3 {[%emt 0:01:33]} g6 {[%emt 0:00:17]} 14. Bxg6 {[%emt 0:01:28]} Rg7 {[%emt 0:00:07]} 15. Nd5+ {[%emt 0:02:35]} Nxd5 {[%emt 0:00:54]} 16. Be4 {[%emt 0:03:40]} Rxf7 {[%emt 0:00:28]} 17. Bxd5 {[%emt 0:00:18]} Bxd5 {[%emt 0:00:07]} 18. cxd5 {[%emt 0:01:15]} Nf6 {[%emt 0:02:57]} 19. f3 {[%emt 0:00:22]} Rd8 {[%emt 0:01:31]} 20. e4 {[%emt 0:06:08]} h5 {[%emt 0:03:35]} 21. Be3 {[%emt 0:00:46]} Bg7 {[%emt 0:00:31]} 22. Rd2 {[%emt 0:00:30]} Nd7 {[%emt 0:00:30]} 23. f4 {[%emt 0:00:30]} Bh6 {[%emt 0:00:48]} 24. g3 {[%emt 0:04:12]} Rg8 {[%emt 0:00:09]} 25. Kg2 {[%emt 0:00:20]} h4 {[%emt 0:00:42]} 26. Kf3 {[%emt 0:01:12]} hxg3 {[%emt 0:01:05]} 27. e5 {[%emt 0:01:44]} Rgg7 {[%emt 0:07:55]} 0-1

[Event "FIDE Open Sachove Univerzity QCC"]
[Site "Ceske Budejovice"]
[Date "2020.07.10"]
[Round "9.1"]
[White "Hlavsa, Filip"]
[Black "Titera, Libor"]
[Result "1-0"]
[ECO "A07"]
[WhiteElo "1886"]
[BlackElo "1843"]
[Annotator "NA RC"]
[PlyCount "75"]
[EventDate "2020.07.01"]
[EventType "swiss"]
[EventCountry "CZE"]
[TimeControl "40/5400+30:1800+30"]

1. Nf3 {[%emt 0:00:15]} d5 {[%emt 0:01:30]} 2. g3 {[%emt 0:01:17]} Bg4 {[%emt 0:02:04]} 3. Bg2 {[%emt 0:01:24]} Bxf3 {[%emt 0:00:14]} 4. Bxf3 {[%emt 0:00:08]} c6 {[%emt 0:00:08]} 5. O-O {[%emt 0:04:43]} f5 {[%emt 0:03:46]} 6. d3 {[%emt 0:05:58]} Nf6 {[%emt 0:00:45]} 7. Nd2 {[%emt 0:02:44]} e6 {[%emt 0:06:46]} 8. Qe1 {[%emt 0:03:38]} Be7 {[%emt 0:02:15]} 9. e4 {[%emt 0:01:15]} O-O {[%emt 0:00:53]} 10. exf5 {[%emt 0:04:01]} exf5 {[%emt 0:00:50]} 11. Qe6+ {[%emt 0:00:13]} Kh8 {[%emt 0:06:01]} 12. Qxf5 {[%emt 0:02:05]} Nbd7 {[%emt 0:04:02]} 13. Qh3 {[%emt 0:05:30]} Bc5 {[%emt 0:05:12]} 14. Bd1 {[%emt 0:05:07]} Ne5 {[%emt 0:05:47]} 15. Nb3 {[%emt 0:02:44]} Bb6 {[%emt 0:03:32]} 16. d4 {[%emt 0:03:56]} Nc4 {[%emt 0:02:13]} 17. c3 {[%emt 0:04:32]} Qe7 {[%emt 0:01:06]} 18. Nd2 {[%emt 0:05:23]} Nd6 {[%emt 0:01:42]} 19. Nf3 {[%emt 0:02:41]} c5 {[%emt 0:05:21]} 20. Ne5 {[%emt 0:09:37]} Kg8 {[%emt 0:00:26]} 21. dxc5 {[%emt 0:02:33]} Bxc5 {[%emt 0:01:43]} 22. Nd3 {[%emt 0:00:04]} Bb6 {[%emt 0:03:06]} 23. Bb3 {[%emt 0:05:48]} Nc4 {[%emt 0:07:09]} 24. Bg5 {[%emt 0:07:34]} Qd6 {[%emt 0:06:09]} 25. Rad1 {[%emt 0:01:15]} Ne4 {[%emt 0:01:25]} 26. Bf4 {[%emt 0:00:54]} Qf6 {[%emt 0:02:38]} 27. Nb4 {[%emt 0:03:40]} Ned2 {[%emt 0:13:32]} 28. Bxd2 {[%emt 0:04:36]} Bxf2+ {[%emt 0:01:19]} 29. Kh1 {[%emt 0:00:14]} Rae8 {[%emt 0:06:54]} 30. Nxd5 {[%emt 0:02:40]} Qc6 {[%emt 0:01:00]} 31. Qg2 {[%emt 0:01:05]} Re2 {[%emt 0:01:02]} 32. Bg5 {[%emt 0:02:52]} Rfe8 {[%emt 0:02:08]} 33. Rxf2 {[%emt 0:00:57]} Re1+ {[%emt 0:00:56]} 34. Rf1 {[%emt 0:00:32]} R1e2 {[%emt 0:00:59]} 35. Qf3 {[%emt 0:00:58]} h6 {[%emt 0:00:44]} 36. Bc1 {[%emt 0:01:19]} Kh8 {[%emt 0:00:07]} 37. Nf4 {[%emt 0:01:01]} R2e4 {[%emt 0:00:22]} 38. Bc2 {[%emt 0:00:27]} 1-0

[Event "FIDE Open Sachove Univerzity QCC"]
[Site "Ceske Budejovice"]
[Date "2020.07.09"]
[Round "9.1"]
[White "Karweit, Alex W"]
[Black "Bastyr, Pavel"]
[Result "1-0"]
[ECO "B84"]
[WhiteElo "1579"]
[BlackElo "1439"]
[Annotator "NA"]
[PlyCount "43"]
[EventDate "2020.07.01"]
[EventType "swiss"]
[EventCountry "CZE"]
[SourceTitle "playchess.com"]
[Source "ChessBase"]
[SourceQuality "1"]
[TimeControl "40/5400+30:1800+30"]

1. e4 {[%emt 0:00:00]} c5 {[%emt 0:00:00]} 2. Nf3 {[%emt 0:00:00]} d6 {[%emt 0:00:00]} 3. d4 {[%emt 0:00:00]} Nf6 {[%emt 0:00:00]} 4. Nc3 {[%emt 0:00:00]} cxd4 {[%emt 0:00:00]} 5. Nxd4 {[%emt 0:00:00]} a6 {[%emt 0:00:05]} 6. Be2 {[%emt 0:00:56]} e6 {[%emt 0:00:04]} 7. g4 {[%emt 0:00:13]} Nc6 {[%emt 0:09:36]} 8. g5 {[%emt 0:01:31]} Nd7 {[%emt 0:01:43]} 9. h4 {[%emt 0:00:00]} Qb6 {[%emt 0:08:20]} 10. Nb3 {[%emt 0:00:53]} Nc5 {[%emt 0:03:33]} 11. Be3 {[%emt 0:01:25]} Qc7 {[%emt 0:00:22]} 12. Nxc5 {[%emt 0:02:08]} dxc5 {[%emt 0:00:11]} 13. Qd2 {[%emt 0:01:01]} b5 {[%emt 0:03:22]} 14. O-O-O {[%emt 0:03:37]} Bb7 {[%emt 0:00:36]} 15. Bf4 {[%emt 0:04:39]} e5 {[%emt 0:00:20]} 16. Nd5 {[%emt 0:00:26]} Qd8 {[%emt 0:02:53]} 17. Bg3 {[%emt 0:03:35]} Nd4 {[%emt 0:01:13]} 18. c3 {[%emt 0:01:01]} Nxe2+ {[%emt 0:00:25]} 19. Qxe2 {[%emt 0:00:04]} Qa5 {[%emt 0:07:20]} 20. Bxe5 {[%emt 0:01:25]} Bxd5 {[%emt 0:00:16]} 21. exd5 {[%emt 0:00:20]} Qxa2 {[%emt 0:00:33]} 22. Bxg7+ {[%emt 0:02:45]} 1-0

[Event "FIDE Open Sachove Univerzity QCC"]
[Site "Ceske Budejovice"]
[Date "2020.07.10"]
[Round "9.3"]
[White "Svetly, Jiri"]
[Black "Valtr, Filip"]
[Result "1/2-1/2"]
[ECO "D56"]
[WhiteElo "1835"]
[BlackElo "1784"]
[Annotator "NA RC"]
[PlyCount "99"]
[EventDate "2020.07.01"]
[EventType "swiss"]
[EventCountry "CZE"]
[TimeControl "40/5400+30:1800+30"]

1. d4 {[%emt 0:02:59]} Nf6 {[%emt 0:00:00]} 2. c4 {[%emt 0:00:10]} e6 {[%emt 0:00:00]} 3. Nc3 {[%emt 0:00:30]} d5 {[%emt 0:00:00]} 4. Bg5 {[%emt 0:00:30]} Be7 {[%emt 0:00:25]} 5. e3 {[%emt 0:00:19]} h6 {[%emt 0:00:47]} 6. Bh4 {[%emt 0:00:21]} O-O {[%emt 0:00:51]} 7. Nf3 {[%emt 0:00:33]} a6 {[%emt 0:02:05]} 8. Rc1 {[%emt 0:01:15]} dxc4 {[%emt 0:06:40]} 9. Bxc4 {[%emt 0:00:18]} b5 {[%emt 0:00:18]} 10. Bd3 {[%emt 0:01:23]} Bb7 {[%emt 0:00:19]} 11. O-O {[%emt 0:00:12]} Nbd7 {[%emt 0:02:42]} 12. a3 {[%emt 0:11:04]} c5 {[%emt 0:09:03]} 13. Bb1 {[%emt 0:16:04]} b4 {[%emt 0:19:14]} 14. axb4 {[%emt 0:03:48]} cxb4 {[%emt 0:00:23]} 15. Na4 {[%emt 0:01:04]} Rc8 {[%emt 0:04:13]} 16. Qd2 {[%emt 0:05:07]} Qa5 {[%emt 0:05:54]} 17. b3 {[%emt 0:00:51]} g5 {[%emt 0:15:36]} 18. Bg3 {[%emt 0:00:16]} Qd5 {[%emt 0:05:51]} 19. Qd3 {[%emt 0:09:32]} Bc6 {[%emt 0:07:06]} 20. Rfe1 {[%emt 0:04:43]} Bb5 {[%emt 0:00:58]} 21. e4 {[%emt 0:04:24]} Qb7 {[%emt 0:00:37]} 22. Qd2 {[%emt 0:01:55]} Rxc1 {[%emt 0:01:48]} 23. Qxc1 {[%emt 0:03:22]} Rc8 {[%emt 0:00:37]} 24. Qd2 {[%emt 0:00:55]} Bxa4 {[%emt 0:02:33]} 25. bxa4 {[%emt 0:00:11]} Nf8 {[%emt 0:07:00]} 26. Be5 {[%emt 0:02:17]} b3 {[%emt 0:01:22]} 27. Bxf6 {[%emt 0:08:38]} Bxf6 {[%emt 0:00:09]} 28. Qb2 {[%emt 0:08:04]} Qb4 {[%emt 0:01:43]} 29. Ba2 {[%emt 0:04:43]} Rc3 {[%emt 0:01:05]} 30. Rb1 {[%emt 0:03:46]} Bxd4 {[%emt 0:01:13]} 31. Nxd4 {[%emt 0:00:23]} Qxd4 {[%emt 0:00:02]} 32. Bxb3 {[%emt 0:00:17]} Rd3 {[%emt 0:01:01]} 33. Qxd4 {[%emt 0:02:01]} Rxd4 {[%emt 0:00:02]} 34. Bc2 {[%emt 0:00:45]} Rc4 {[%emt 0:00:50]} 35. Rb2 {[%emt 0:00:54]} Nd7 {[%emt 0:00:20]} 36. f3 {[%emt 0:00:51]} Nc5 {[%emt 0:00:30]} 37. Ra2 {[%emt 0:00:38]} Rd4 {[%emt 0:01:04]} 38. Kf1 {[%emt 0:01:39]} Rd2 {[%emt 0:00:43]} 39. h3 {[%emt 0:00:36]} Nxa4 {[%emt 0:01:08]} 40. Rxa4 {[%emt 0:00:32]} Rxc2 {[%emt 0:00:05]} 41. Rxa6 {[%emt 0:30:08]} Kg7 {[%emt 0:30:41]} 42. Ra3 {[%emt 0:00:00]} Kf6 {[%emt 0:00:00]} 43. Re3 {[%emt 0:00:00]} Ke5 {[%emt 0:00:00]} 44. Re2 {[%emt 0:00:00]} Rc1+ {[%emt 0:00:00]} 45. Kf2 {[%emt 0:00:00]} h5 {[%emt 0:00:00]} 46. g3 {[%emt 0:00:00]} h4 {[%emt 0:00:00]} 47. Ra2 {[%emt 0:00:00]} Kf6 {[%emt 0:00:00]} 48. Rb2 {[%emt 0:00:00]} Rc5 {[%emt 0:00:00]} 49. Ra2 {[%emt 0:00:00]} Ke5 {[%emt 0:00:00]} 50. Re2 {[%emt 0:00:00]} 1/2-1/2

[Event "FIDE Open Sachove Univerzity QCC"]
[Site "Ceske Budejovice"]
[Date "2020.07.09"]
[Round "9.4"]
[White "Svanda, Adam"]
[Black "Sobotka, Radim"]
[Result "1/2-1/2"]
[ECO "A22"]
[WhiteElo "1870"]
[BlackElo "1764"]
[Annotator "NA RC"]
[PlyCount "94"]
[EventDate "2020.07.01"]
[EventType "swiss"]
[EventCountry "CZE"]
[SourceTitle "playchess.com"]
[Source "ChessBase"]
[SourceQuality "1"]
[TimeControl "40/5400+30:1800+30"]

1. c4 {[%emt 0:00:00]} e5 {[%emt 0:00:00]} 2. Nc3 {[%emt 0:00:00]} Bb4 {[%emt 0:00:35]} 3. Nf3 {[%emt 0:01:34]} Bxc3 {[%emt 0:01:53]} 4. bxc3 {[%emt 0:00:22]} d6 {[%emt 0:03:14]} 5. g3 {[%emt 0:02:06]} Nf6 {[%emt 0:00:52]} 6. Bg2 {[%emt 0:00:20]} O-O {[%emt 0:00:33]} 7. O-O {[%emt 0:00:28]} Nbd7 {[%emt 0:03:20] A22: English Opening: 1...e5 2 Nc3 Nf6.} 8. a4 {[%emt 0:03:19]} a5 {[%emt 0:01:09]} 9. Ba3 {[%emt 0:01:44] [#]} c5 $146 {[%emt 0:02:18]} ({Predecessor:} 9... Re8 10. d3 e4 11. Nd4 exd3 12. exd3 Ne5 13. c5 d5 14. h3 Nc6 15. Qb3 Nxd4 16. cxd4 {1-0 (30) Sequeda Ramirez,P (2128)-Perdomo Araujo,A (2048) San Carlos 2014}) 10. Qc2 {[%emt 0:10:06]} Rb8 {[%emt 0:01:27]} 11. d4 {[%emt 0:01:52]} Qc7 {[%emt 0:04:10]} 12. Rab1 {[%emt 0:05:49]} b6 {[%emt 0:00:49]} 13. d5 {[%emt 0:02:30]} (13. Rfe1 $11) 13... h6 {[%emt 0:05:44]} 14. e4 {[%emt 0:01:02]} Nh7 {[%emt 0:14:44]} 15. Bc1 {[%emt 0:09:44]} Ndf6 {[%emt 0:01:51]} 16. Nh4 {[%emt 0:03:52]} g5 {[%emt 0:04:35]} 17. Nf5 {[%emt 0:01:13]} Bxf5 {[%emt 0:00:21]} 18. exf5 {[%emt 0:00:05]} Nd7 {[%emt 0:01:10]} 19. Qe2 {[%emt 0:01:54]} Ndf6 {[%emt 0:02:31]} 20. h4 {[%emt 0:04:05]} Qd7 {[%emt 0:04:29]} 21. Qc2 {[%emt 0:09:14]} Ne8 {[%emt 0:03:51]} 22. hxg5 {[%emt 0:10:02]} hxg5 {[%emt 0:00:18]} 23. f4 {[%emt 0:00:12]} gxf4 {[%emt 0:02:49]} 24. gxf4 {[%emt 0:00:52]} f6 {[%emt 0:00:47]} 25. Rf3 {[%emt 0:00:51]} Kf7 {[%emt 0:05:04]} 26. Be3 {[%emt 0:07:42]} Ke7 {[%emt 0:01:54]} 27. Kf2 {[%emt 0:06:59]} Kd8 {[%emt 0:01:07]} 28. Rh1 {[%emt 0:00:50]} Rf7 {[%emt 0:04:12]} 29. Rfh3 {[%emt 0:00:43]} exf4 {[%emt 0:01:30]} 30. Bxf4 {[%emt 0:00:25]} Ng5 {[%emt 0:01:02]} 31. Rg3 {[%emt 0:04:33]} Nh7 {[%emt 0:03:08]} 32. Bf3 {[%emt 0:00:49]} Kc7 {[%emt 0:01:21]} 33. Bh5 {[%emt 0:00:45]} Re7 {[%emt 0:04:55]} 34. Bh6 {[%emt 0:02:03]} Ng7 {[%emt 0:07:37]} 35. Bxg7 {[%emt 0:05:05]} Rxg7 {[%emt 0:00:02]} 36. Bg6 {[%emt 0:00:24]} Ng5 {[%emt 0:02:05]} 37. Rxg5 {[%emt 0:00:44]} fxg5 {[%emt 0:00:21]} 38. f6 {[%emt 0:00:03]} Rf8 {[%emt 0:02:02]} 39. f7 {[%emt 0:00:45]} Rfxf7+ {[%emt 0:02:47]} 40. Bxf7 {[%emt 0:00:06]} Qxf7+ {[%emt 0:00:35]} 41. Kg2 {[%emt 0:30:47]} g4 {[%emt 0:32:08]} 42. Qe4 {[%emt 0:02:14]} Qf6 {[%emt 0:01:56]} 43. Qe8 {[%emt 0:00:00] [#]} Qf3+ $2 {[%emt 0:00:00]} ({Black should try} 43... Rf7 $1 $19 {[%csl Gf7][%cal Rf6f2]} 44. Qe3 Kb7) 44. Kg1 {[%emt 0:00:00]} Rd7 {[%emt 0:00:00]} 45. Rh8 {[%emt 0:00:00]} Qd1+ {[%emt 0:00:00]} 46. Kg2 $1 {[%emt 0:00:00]} Qc2+ {[%emt 0:00:00]} 47. Kg1 {[%emt 0:00:00]} Qd1+ $11 {[%emt 0:00:00]} 1/2-1/2

[Event "FIDE Open Sachove Univerzity QCC"]
[Site "Ceske Budejovice"]
[Date "2020.07.09"]
[Round "9.5"]
[White "Rychlik, Zdenek"]
[Black "Simacek, Vaclav"]
[Result "1/2-1/2"]
[ECO "B01"]
[WhiteElo "1701"]
[BlackElo "1816"]
[Annotator "NA"]
[PlyCount "121"]
[EventDate "2020.07.01"]
[EventType "swiss"]
[EventCountry "CZE"]
[SourceTitle "playchess.com"]
[Source "ChessBase"]
[SourceQuality "1"]
[TimeControl "40/5400+30:1800+30"]

1. e4 {[%emt 0:00:00]} Nc6 {[%emt 0:00:00]} 2. d4 {[%emt 0:00:25]} d5 {[%emt 0:00:00]} 3. exd5 {[%emt 0:00:47]} Qxd5 {[%emt 0:00:00]} 4. Nf3 {[%emt 0:00:04]} Bg4 {[%emt 0:01:06]} 5. Be2 {[%emt 0:00:08]} Nf6 {[%emt 0:01:29]} 6. Nc3 {[%emt 0:01:44]} Qh5 {[%emt 0:00:46] B01: Scandinavian Defence.} 7. Be3 {[%emt 0:01:39]} O-O-O {[%emt 0:00:08]} 8. Ng5 {[%emt 0:06:57]} Bxe2 {[%emt 0:07:37]} 9. Qxe2 {[%emt 0:02:33]} Qg6 {[%emt 0:02:27] [#]} 10. Qc4 $146 {[%emt 0:04:35]} ({Predecessor:} 10. O-O e6 11. Nf3 Bd6 12. Nb5 Nd5 13. c4 Nxe3 14. fxe3 Qh5 15. Qf2 a6 16. Nxd6+ Rxd6 {1-0 (27) Fruteau,S (2185)-Brebion,C Massy 1993}) 10... e6 {[%emt 0:01:25]} 11. O-O {[%emt 0:00:38]} h6 {[%emt 0:00:24]} 12. Nf3 {[%emt 0:00:59]} Nd5 {[%emt 0:00:35]} 13. Nxd5 {[%emt 0:00:38]} Rxd5 {[%emt 0:04:19]} 14. a3 {[%emt 0:02:25]} (14. Rfb1 $11) 14... Be7 {[%emt 0:00:15]} 15. Qa4 {[%emt 0:01:46]} Ra5 {[%emt 0:03:43]} 16. Qc4 {[%emt 0:02:38]} Rf5 {[%emt 0:01:49]} 17. Qe2 {[%emt 0:03:20]} h5 {[%emt 0:05:56]} 18. c4 {[%emt 0:05:51]} h4 {[%emt 0:00:28]} 19. h3 {[%emt 0:00:16]} Qh5 {[%emt 0:06:44]} 20. Rfe1 {[%emt 0:02:19]} g5 {[%emt 0:08:11]} 21. Nh2 {[%emt 0:00:14]} Qxe2 {[%emt 0:05:19]} 22. Rxe2 {[%emt 0:00:02]} Rd8 {[%emt 0:00:28]} 23. Rd1 {[%emt 0:03:26]} Bf6 {[%emt 0:05:56]} 24. Nf3 {[%emt 0:02:04]} e5 {[%emt 0:04:27]} 25. d5 {[%emt 0:02:03]} e4 {[%emt 0:02:02]} 26. Nd4 {[%emt 0:00:24]} Nxd4 {[%emt 0:11:18]} 27. Bxd4 {[%emt 0:00:10]} Bxd4 {[%emt 0:03:53]} 28. Rxd4 {[%emt 0:00:02]} c6 {[%emt 0:00:09]} 29. d6 {[%emt 0:03:16]} c5 {[%emt 0:02:32]} 30. Rdxe4 {[%emt 0:00:03]} Rxd6 {[%emt 0:00:26]} 31. Re5 {[%emt 0:02:39]} Rd1+ {[%emt 0:03:20]} 32. Kh2 {[%emt 0:00:01]} Rxe5 {[%emt 0:00:31]} 33. Rxe5 {[%emt 0:00:01]} f6 {[%emt 0:00:47]} 34. Rxc5+ {[%emt 0:00:02]} Kd7 {[%emt 0:00:07]} 35. Rb5 {[%emt 0:00:34]} b6 {[%emt 0:02:23]} 36. a4 {[%emt 0:07:54]} Rd2 {[%emt 0:03:02]} 37. Kg1 {[%emt 0:01:46]} Rc2 {[%emt 0:01:20]} 38. b3 {[%emt 0:00:01]} Rc1+ {[%emt 0:00:51]} 39. Kh2 {[%emt 0:00:02]} Ke6 {[%emt 0:04:45]} 40. a5 {[%emt 0:00:50]} bxa5 {[%emt 0:01:26]} 41. Rxa5 {[%emt 0:30:01]} Rb1 {[%emt 0:30:17]} 42. Rb5 {[%emt 0:01:17]} a5 {[%emt 0:01:09]} 43. g3 {[%emt 0:00:41]} hxg3+ {[%emt 0:02:19]} 44. Kxg3 {[%emt 0:01:19]} Rc1 {[%emt 0:01:43]} 45. Rxa5 {[%emt 0:00:11]} Rc3+ {[%emt 0:00:18]} 46. f3 {[%emt 0:00:17]} Rxb3 {[%emt 0:00:19]} 47. Rc5 {[%emt 0:00:17]} Rd3 {[%emt 0:01:44]} 48. Rc8 {[%emt 0:03:47]} Rd4 {[%emt 0:00:56]} 49. Re8+ {[%emt 0:03:12]} Kf5 {[%emt 0:00:59]} 50. Rc8 {[%emt 0:00:30]} Kg6 {[%emt 0:01:21]} 51. Rg8+ {[%emt 0:03:02]} Kf7 {[%emt 0:00:05]} 52. Rc8 {[%emt 0:00:06]} Ke7 {[%emt 0:00:15]} 53. Rc5 {[%emt 0:00:13]} Rf4 {[%emt 0:00:00]} 54. Rc8 {[%emt 0:00:00]} Rf5 {[%emt 0:00:00]} 55. Kg4 {[%emt 0:00:00]} Rf4+ {[%emt 0:00:00]} 56. Kg3 {[%emt 0:00:00]} Kd7 {[%emt 0:00:00]} 57. Rc5 {[%emt 0:00:00]} Kd6 {[%emt 0:00:00]} 58. Rc8 {[%emt 0:00:00]} Ke5 {[%emt 0:00:00]} 59. Rc7 {[%emt 0:00:00]} Kd4 {[%emt 0:00:00]} 60. Rc8 $11 {[%emt 0:00:00]} Ke3 {[%emt 0:00:00]} 61. Re8+ {[%emt 0:00:00]} 1/2-1/2

[Event "FIDE Open Sachove Univerzity QCC"]
[Site "Ceske Budejovice"]
[Date "2020.07.09"]
[Round "9.5"]
[White "Berkovec, Jakub"]
[Black "Vojtek, Pavel"]
[Result "0-1"]
[ECO "C01"]
[WhiteElo "1224"]
[BlackElo "1292"]
[Annotator "NA"]
[PlyCount "66"]
[EventDate "2020.07.01"]
[EventType "swiss"]
[EventCountry "CZE"]
[SourceTitle "playchess.com"]
[Source "ChessBase"]
[SourceQuality "1"]
[TimeControl "40/5400+30:1800+30"]

1. e4 {[%emt 0:00:00]} e6 {[%emt 0:00:00]} 2. d4 {[%emt 0:00:00]} d5 {[%emt 0:00:00]} 3. exd5 {[%emt 0:01:51]} exd5 {[%emt 0:00:00]} 4. Nc3 {[%emt 0:02:14]} Nf6 {[%emt 0:02:22]} 5. Bd3 {[%emt 0:02:24]} c6 {[%emt 0:02:39]} 6. Nge2 {[%emt 0:02:28]} Be7 {[%emt 0:02:33]} 7. Be3 {[%emt 0:04:14]} O-O {[%emt 0:02:36]} 8. Qd2 {[%emt 0:02:16]} Nbd7 {[%emt 0:04:14]} 9. O-O-O {[%emt 0:02:22]} b5 {[%emt 0:07:03]} 10. f3 {[%emt 0:03:56]} Qb6 {[%emt 0:02:39]} 11. g4 {[%emt 0:03:18]} a5 {[%emt 0:01:59]} 12. Ng3 {[%emt 0:03:46]} a4 {[%emt 0:04:27]} 13. h4 {[%emt 0:02:41]} b4 {[%emt 0:04:47]} 14. Nce2 {[%emt 0:03:18]} b3 {[%emt 0:21:22]} 15. a3 {[%emt 0:07:17]} Ba6 {[%emt 0:03:43]} 16. Bxa6 {[%emt 0:04:10]} Rxa6 {[%emt 0:01:38]} 17. c3 {[%emt 0:03:58]} Rb8 {[%emt 0:01:42]} 18. Kb1 {[%emt 0:02:50]} Ne8 {[%emt 0:01:30]} 19. Bf4 {[%emt 0:02:50]} Rb7 {[%emt 0:02:39]} 20. h5 {[%emt 0:01:55]} Nd6 {[%emt 0:02:12]} 21. Bxd6 {[%emt 0:01:53]} Bxd6 {[%emt 0:00:13]} 22. Nf5 {[%emt 0:00:48]} Bf8 {[%emt 0:00:22]} 23. Ne3 {[%emt 0:01:36]} Nf6 {[%emt 0:00:32]} 24. Nf5 {[%emt 0:00:54]} Ne8 {[%emt 0:00:37]} 25. Rh3 {[%emt 0:00:44]} Nc7 {[%emt 0:00:58]} 26. Rdh1 {[%emt 0:01:48]} Nb5 {[%emt 0:02:18]} 27. Ne3 {[%emt 0:01:49]} Nxa3+ {[%emt 0:01:42]} 28. bxa3 {[%emt 0:04:38]} Bxa3 {[%emt 0:00:16]} 29. Ka1 {[%emt 0:01:55]} b2+ {[%emt 0:01:47]} 30. Kb1 {[%emt 0:03:13]} Bf8 {[%emt 0:01:29]} 31. Nc2 {[%emt 0:03:52]} Qb3 {[%emt 0:06:47]} 32. Nb4 {[%emt 0:04:15]} Bxb4 {[%emt 0:00:54]} 33. cxb4 {[%emt 0:01:33]} a3 {[%emt 0:00:18]} 0-1

[Event "FIDE Open Sachove Univerzity QCC"]
[Site "Ceske Budejovice"]
[Date "2020.07.09"]
[Round "9.6"]
[White "Zelbova, Lada"]
[Black "Dusanek, Michal"]
[Result "1-0"]
[ECO "D03"]
[WhiteElo "1637"]
[BlackElo "1500"]
[Annotator "NA"]
[PlyCount "85"]
[EventDate "2020.07.01"]
[EventType "swiss"]
[EventCountry "CZE"]
[SourceTitle "playchess.com"]
[Source "ChessBase"]
[SourceQuality "1"]
[TimeControl "40/5400+30:1800+30"]

1. d4 {[%emt 0:00:00]} Nf6 {[%emt 0:00:30]} 2. Nf3 {[%emt 0:00:00]} g6 {[%emt 0:00:30]} 3. Bg5 {[%emt 0:00:00]} Bg7 {[%emt 0:01:26]} 4. Nbd2 {[%emt 0:00:17]} d5 {[%emt 0:01:08]} 5. e3 {[%emt 0:03:19]} Nbd7 {[%emt 0:02:39]} 6. Bd3 {[%emt 0:06:19]} b6 {[%emt 0:08:00]} 7. a4 {[%emt 0:05:23]} c5 {[%emt 0:01:34]} 8. c3 {[%emt 0:01:05]} Bb7 {[%emt 0:00:47]} 9. Bf4 {[%emt 0:05:19]} O-O {[%emt 0:03:45]} 10. O-O {[%emt 0:06:25]} h6 {[%emt 0:05:31]} 11. Ne5 {[%emt 0:07:24]} Rc8 {[%emt 0:04:12]} 12. a5 {[%emt 0:08:01]} c4 {[%emt 0:04:09]} 13. Bc2 {[%emt 0:02:59]} b5 {[%emt 0:05:20]} 14. Qe2 {[%emt 0:10:14]} Nh5 {[%emt 0:05:37]} 15. Ndf3 {[%emt 0:09:55]} Nxf4 {[%emt 0:02:53]} 16. exf4 {[%emt 0:00:05]} e6 {[%emt 0:00:43]} 17. Nxd7 {[%emt 0:03:36]} Qxd7 {[%emt 0:05:04]} 18. Ne5 {[%emt 0:00:08]} Qe7 {[%emt 0:00:29]} 19. Qg4 {[%emt 0:03:50]} Rc7 {[%emt 0:05:31]} 20. Rfe1 {[%emt 0:03:56]} b4 {[%emt 0:16:29]} 21. h4 {[%emt 0:08:24]} h5 {[%emt 0:01:13]} 22. Qh3 {[%emt 0:06:18]} Bc8 {[%emt 0:01:48]} 23. g4 {[%emt 0:03:17]} Bxe5 {[%emt 0:01:32]} 24. fxe5 {[%emt 0:01:01]} f5 {[%emt 0:02:17]} 25. gxh5 {[%emt 0:00:58]} gxh5 {[%emt 0:00:11]} 26. Kh1 {[%emt 0:00:44]} Kh7 {[%emt 0:01:55]} 27. Rg1 {[%emt 0:01:04]} Qe8 {[%emt 0:01:02]} 28. Rg5 {[%emt 0:01:07]} Rg8 {[%emt 0:00:24]} 29. Rag1 {[%emt 0:01:43]} Rcg7 {[%emt 0:00:16]} 30. Bd1 {[%emt 0:00:46]} Rxg5 {[%emt 0:01:19]} 31. Rxg5 {[%emt 0:00:42]} Rxg5 {[%emt 0:00:07]} 32. hxg5 {[%emt 0:00:05]} b3 {[%emt 0:01:41]} 33. Bxh5 {[%emt 0:01:02]} Qf8 {[%emt 0:03:53]} 34. Be8+ {[%emt 0:00:38]} Kg8 {[%emt 0:00:52]} 35. Qh5 {[%emt 0:00:31]} Qg7 {[%emt 0:00:45]} 36. Kg2 {[%emt 0:00:27]} Bd7 {[%emt 0:02:55]} 37. Bg6 {[%emt 0:00:24]} Qh8 {[%emt 0:01:27]} 38. Bf7+ {[%emt 0:00:35]} Kg7 {[%emt 0:00:49]} 39. Qg6+ {[%emt 0:00:14]} Kf8 {[%emt 0:00:27]} 40. Bxe6 {[%emt 0:00:33]} Bxe6 {[%emt 0:02:31]} 41. Qxe6 {[%emt 0:30:07]} Qh4 {[%emt 0:30:43]} 42. Qxf5+ {[%emt 0:00:47]} Kg7 {[%emt 0:00:16]} 43. g6 {[%emt 0:00:00]} 1-0